[Event "Titled Tuesday Blitz August 15 Early 2023"]
[White "Skaric, Djuro"]
[Black "Mihailidis, Anastasios"]
[WhiteFideId "934569"]
[BlackFideId "4205588"]
[WhiteElo "2342"]
[BlackElo "2491"]
[Result "0-1"]
[Round "7"]
[TimeControl "180+1"]
[Date "2023.08.15"]
[WhiteClock "0:00:49"]
[BlackClock "0:00:43"]
[Board "117"]

1. g3 {[%clk 0:03:00]}  d5 {[%clk 0:03:00]} 2. Bg2 {[%clk 0:03:01]}  e6 {[%clk 0:03:00]} 3. d3 {[%clk 0:03:01]}  Nf6 {[%clk 0:03:00]} 4. Nf3 {[%clk 0:03:02]}  Be7 {[%clk 0:03:00]} 5. O-O {[%clk 0:03:02]}  O-O {[%clk 0:03:00]} 6. Nc3 {[%clk 0:03:02]}  c5 {[%clk 0:03:00]} 7. e4 {[%clk 0:03:02]}  Nc6 {[%clk 0:03:00]} 8. h3 {[%clk 0:03:01]}  dxe4 {[%clk 0:02:59]} 9. dxe4 {[%clk 0:03:01]}  Qxd1 {[%clk 0:02:55]} 10. Rxd1 {[%clk 0:03:02]}  Rd8 {[%clk 0:02:55]} 11. Be3 {[%clk 0:03:01]}  b6 {[%clk 0:02:49]} 12. Rxd8+ {[%clk 0:02:57]}  Nxd8 {[%clk 0:02:47]} 13. Rd1 {[%clk 0:02:55]}  Bb7 {[%clk 0:02:43]} 14. Ne5 {[%clk 0:02:49]}  Nc6 {[%clk 0:02:39]} 15. Nxc6 {[%clk 0:02:48]}  Bxc6 {[%clk 0:02:39]} 16. f4 {[%clk 0:02:47]}  Ne8 {[%clk 0:02:20]} 17. a4 {[%clk 0:02:39]}  Rd8 {[%clk 0:02:18]} 18. Rxd8 {[%clk 0:02:35]}  Bxd8 {[%clk 0:02:19]} 19. b3 {[%clk 0:02:34]}  Nc7 {[%clk 0:02:17]} 20. Kf2 {[%clk 0:02:33]}  Kf8 {[%clk 0:02:12]} 21. Ke2 {[%clk 0:02:28]}  Bf6 {[%clk 0:02:10]} 22. Nd1 {[%clk 0:02:09]}  Bb7 {[%clk 0:02:07]} 23. Bf3 {[%clk 0:02:09]}  Ke8 {[%clk 0:02:05]} 24. c3 {[%clk 0:02:07]}  Be7 {[%clk 0:01:57]} 25. Kd2 {[%clk 0:02:06]}  f5 {[%clk 0:01:54]} 26. Nf2 {[%clk 0:02:06]}  Bf6 {[%clk 0:01:46]} 27. Kd3 {[%clk 0:01:53]}  Kf8 {[%clk 0:01:40]} 28. g4 {[%clk 0:01:50]}  g6 {[%clk 0:01:34]} 29. g5 {[%clk 0:01:48]}  Bg7 {[%clk 0:01:32]} 30. h4 {[%clk 0:01:43]}  Ne8 {[%clk 0:01:29]} 31. Ke2 {[%clk 0:01:41]}  Bxc3 {[%clk 0:01:26]} 32. exf5 {[%clk 0:01:41]}  Bxf3+ {[%clk 0:01:25]} 33. Kxf3 {[%clk 0:01:41]}  exf5 {[%clk 0:01:26]} 34. Nd3 {[%clk 0:01:40]}  Nd6 {[%clk 0:01:20]} 35. Ne5 {[%clk 0:01:18]}  Bxe5 {[%clk 0:01:19]} 36. fxe5 {[%clk 0:01:18]}  Ne4 {[%clk 0:01:17]} 37. Bf4 {[%clk 0:01:14]}  Ke7 {[%clk 0:01:14]} 38. e6 {[%clk 0:01:14]}  Kxe6 {[%clk 0:01:14]} 39. Bb8 {[%clk 0:01:14]}  a6 {[%clk 0:01:15]} 40. Ba7 {[%clk 0:01:11]}  b5 {[%clk 0:01:15]} 41. axb5 {[%clk 0:01:10]}  axb5 {[%clk 0:01:15]} 42. Kf4 {[%clk 0:01:10]}  c4 {[%clk 0:01:14]} 43. bxc4 {[%clk 0:01:09]}  bxc4 {[%clk 0:01:13]} 44. Ke3 {[%clk 0:01:10]}  Kd5 {[%clk 0:01:10]} 45. Bb8 {[%clk 0:01:06]}  Kc5 {[%clk 0:01:00]} 46. Be5 {[%clk 0:01:03]}  Kb4 {[%clk 0:00:57]} 47. Kd4 {[%clk 0:00:59]}  Kb3 {[%clk 0:00:52]} 48. Kd5 {[%clk 0:00:58]}  c3 {[%clk 0:00:52]} 49. Ke6 {[%clk 0:00:58]}  c2 {[%clk 0:00:52]} 50. Bf4 {[%clk 0:00:58]}  Kb2 {[%clk 0:00:51]} 51. Kf7 {[%clk 0:00:56]}  c1=Q {[%clk 0:00:51]} 52. Bxc1+ {[%clk 0:00:56]}  Kxc1 {[%clk 0:00:52]} 53. Kg7 {[%clk 0:00:57]}  f4 {[%clk 0:00:52]} 54. Kxh7 {[%clk 0:00:57]}  f3 {[%clk 0:00:52]} 55. Kxg6 {[%clk 0:00:56]}  f2 {[%clk 0:00:53]} 56. h5 {[%clk 0:00:57]}  f1=Q {[%clk 0:00:52]} 57. h6 {[%clk 0:00:57]}  Qf4 {[%clk 0:00:49]} 58. h7 {[%clk 0:00:52]}  Qxg5+ {[%clk 0:00:48]} 59. Kf7 {[%clk 0:00:52]}  Nd6+ {[%clk 0:00:43]} 60. Kf8 {[%clk 0:00:51]}  Qf6+ {[%clk 0:00:43]} 61. Kg8 {[%clk 0:00:51]}  Qg6+ {[%clk 0:00:43]} 62. Kh8 {[%clk 0:00:49]}  Nf7# {[%clk 0:00:43]} 0-1


[Site "https://www.chess.com"]

[Event "Titled Tuesday Blitz August 15 Early 2023"]
[White "Ouellet, Maili-Jade"]
[Black "Bochnicka, Vladimir"]
[WhiteFideId "2620472"]
[BlackFideId "14943450"]
[WhiteElo "2305"]
[BlackElo "2479"]
[Result "0-1"]
[Round "7"]
[TimeControl "180+1"]
[Date "2023.08.15"]
[WhiteClock "0:00:01"]
[BlackClock "0:00:10"]
[Board "120"]

1. e4 {[%clk 0:03:00]}  e5 {[%clk 0:03:00]} 2. Nf3 {[%clk 0:03:00]}  Nc6 {[%clk 0:02:58]} 3. Bb5 {[%clk 0:02:59]}  a6 {[%clk 0:02:58]} 4. Ba4 {[%clk 0:02:58]}  Nf6 {[%clk 0:02:58]} 5. O-O {[%clk 0:02:55]}  b5 {[%clk 0:02:58]} 6. Bb3 {[%clk 0:02:53]}  Bc5 {[%clk 0:02:59]} 7. d3 {[%clk 0:02:48]}  O-O {[%clk 0:02:58]} 8. Bg5 {[%clk 0:02:41]}  h6 {[%clk 0:02:57]} 9. Bh4 {[%clk 0:02:40]}  d6 {[%clk 0:02:53]} 10. h3 {[%clk 0:02:30]}  g5 {[%clk 0:02:48]} 11. Nxg5 {[%clk 0:02:18]}  hxg5 {[%clk 0:02:48]} 12. Bxg5 {[%clk 0:02:18]}  Be6 {[%clk 0:02:37]} 13. Qf3 {[%clk 0:01:52]}  Kg7 {[%clk 0:02:21]} 14. Nc3 {[%clk 0:01:48]}  Nd4 {[%clk 0:02:16]} 15. Qg3 {[%clk 0:01:44]}  Nh5 {[%clk 0:02:14]} 16. Qh4 {[%clk 0:01:40]}  f6 {[%clk 0:02:09]} 17. Be3 {[%clk 0:01:33]}  Bxb3 {[%clk 0:01:57]} 18. Qxh5 {[%clk 0:01:30]}  Bf7 {[%clk 0:01:41]} 19. Qh6+ {[%clk 0:00:51]}  Kg8 {[%clk 0:01:41]} 20. f4 {[%clk 0:00:51]}  Ne2+ {[%clk 0:01:33]} 21. Nxe2 {[%clk 0:00:50]}  Bxe3+ {[%clk 0:01:33]} 22. Kh1 {[%clk 0:00:51]}  Qe7 {[%clk 0:01:27]} 23. Rf3 {[%clk 0:00:50]}  exf4 {[%clk 0:01:19]} 24. Nxf4 {[%clk 0:00:49]}  Bxf4 {[%clk 0:01:19]} 25. Rxf4 {[%clk 0:00:49]}  Be6 {[%clk 0:01:16]} 26. Raf1 {[%clk 0:00:45]}  Qg7 {[%clk 0:01:11]} 27. Qh4 {[%clk 0:00:43]}  Qg5 {[%clk 0:01:07]} 28. Qf2 {[%clk 0:00:42]}  Rf7 {[%clk 0:00:47]} 29. Rf3 {[%clk 0:00:40]}  Qh6 {[%clk 0:00:21]} 30. a3 {[%clk 0:00:26]}  Raf8 {[%clk 0:00:21]} 31. Qd4 {[%clk 0:00:23]}  Rg7 {[%clk 0:00:15]} 32. Rxf6 {[%clk 0:00:18]}  Rxf6 {[%clk 0:00:15]} 33. Qxf6 {[%clk 0:00:09]}  Qxf6 {[%clk 0:00:09]} 34. Rxf6 {[%clk 0:00:10]}  Bd7 {[%clk 0:00:07]} 35. g4 {[%clk 0:00:10]}  Rf7 {[%clk 0:00:07]} 36. Rxf7 {[%clk 0:00:07]}  Kxf7 {[%clk 0:00:07]} 37. Kg2 {[%clk 0:00:07]}  Kf6 {[%clk 0:00:08]} 38. Kf3 {[%clk 0:00:07]}  Kg5 {[%clk 0:00:08]} 39. Kg3 {[%clk 0:00:07]}  Be6 {[%clk 0:00:09]} 40. c3 {[%clk 0:00:07]}  c5 {[%clk 0:00:09]} 41. h4+ {[%clk 0:00:07]}  Kg6 {[%clk 0:00:08]} 42. Kf4 {[%clk 0:00:07]}  Bb3 {[%clk 0:00:07]} 43. e5 {[%clk 0:00:03]}  dxe5+ {[%clk 0:00:04]} 44. Kxe5 {[%clk 0:00:04]}  a5 {[%clk 0:00:03]} 45. Kd6 {[%clk 0:00:04]}  c4 {[%clk 0:00:04]} 46. dxc4 {[%clk 0:00:04]}  Bxc4 {[%clk 0:00:04]} 47. Ke5 {[%clk 0:00:04]}  Be2 {[%clk 0:00:04]} 48. Kf4 {[%clk 0:00:05]}  a4 {[%clk 0:00:04]} 49. Kg3 {[%clk 0:00:04]}  Bc4 {[%clk 0:00:05]} 50. Kf4 {[%clk 0:00:04]}  Bd3 {[%clk 0:00:05]} 51. Kf3 {[%clk 0:00:04]}  Bf1 {[%clk 0:00:06]} 52. Kg3 {[%clk 0:00:04]}  Bd3 {[%clk 0:00:06]} 53. Kf4 {[%clk 0:00:04]}  Kf6 {[%clk 0:00:07]} 54. h5 {[%clk 0:00:04]}  Be2 {[%clk 0:00:07]} 55. Kg3 {[%clk 0:00:03]}  Kg5 {[%clk 0:00:07]} 56. h6 {[%clk 0:00:02]}  Kxh6 {[%clk 0:00:07]} 57. Kf4 {[%clk 0:00:03]}  Kg6 {[%clk 0:00:08]} 58. g5 {[%clk 0:00:02]}  Bd1 {[%clk 0:00:07]} 59. Ke5 {[%clk 0:00:02]}  Kxg5 {[%clk 0:00:08]} 60. Kd4 {[%clk 0:00:02]}  Be2 {[%clk 0:00:08]} 61. Kc5 {[%clk 0:00:02]}  Bc4 {[%clk 0:00:09]} 62. Kb4 {[%clk 0:00:03]}  Kf5 {[%clk 0:00:08]} 63. Kc5 {[%clk 0:00:03]}  Ke5 {[%clk 0:00:08]} 64. Kb4 {[%clk 0:00:03]}  Ke4 {[%clk 0:00:09]} 65. Ka5 {[%clk 0:00:02]}  Kd3 {[%clk 0:00:09]} 66. Kb4 {[%clk 0:00:03]}  Kc2 {[%clk 0:00:09]} 67. Kc5 {[%clk 0:00:01]}  Kxb2 {[%clk 0:00:10]} 0-1


[Site "https://www.chess.com"]

[Event "Titled Tuesday Blitz August 15 Early 2023"]
[White "Itkis, Boris"]
[Black "le-castor-faineant"]
[WhiteFideId "1209167"]
[WhiteElo "2467"]
[BlackElo "2202"]
[Result "1-0"]
[Round "7"]
[TimeControl "180+1"]
[Date "2023.08.15"]
[WhiteClock "0:01:57"]
[BlackClock "0:00:15"]
[Board "124"]

1. c4 {[%clk 0:03:00]}  Nf6 {[%clk 0:02:56]} 2. Nf3 {[%clk 0:03:01]}  g6 {[%clk 0:02:56]} 3. b4 {[%clk 0:03:01]}  Bg7 {[%clk 0:02:57]} 4. Bb2 {[%clk 0:03:01]}  O-O {[%clk 0:02:57]} 5. g3 {[%clk 0:03:02]}  c6 {[%clk 0:02:56]} 6. Bg2 {[%clk 0:03:02]}  d5 {[%clk 0:02:56]} 7. Na3 {[%clk 0:03:02]}  a5 {[%clk 0:02:54]} 8. b5 {[%clk 0:03:03]}  dxc4 {[%clk 0:02:53]} 9. bxc6 {[%clk 0:03:03]}  Nxc6 {[%clk 0:02:51]} 10. Nxc4 {[%clk 0:03:03]}  Be6 {[%clk 0:02:47]} 11. Ne3 {[%clk 0:02:46]}  a4 {[%clk 0:02:32]} 12. O-O {[%clk 0:02:37]}  a3 {[%clk 0:02:31]} 13. Bc3 {[%clk 0:02:37]}  b5 {[%clk 0:02:29]} 14. Ng5 {[%clk 0:02:37]}  Bd7 {[%clk 0:02:25]} 15. Rb1 {[%clk 0:02:32]}  Rb8 {[%clk 0:02:19]} 16. Qb3 {[%clk 0:02:29]}  b4 {[%clk 0:02:15]} 17. Ba1 {[%clk 0:02:26]}  Na5 {[%clk 0:02:09]} 18. Qd1 {[%clk 0:02:23]}  Qe8 {[%clk 0:01:29]} 19. d3 {[%clk 0:02:19]}  h6 {[%clk 0:01:18]} 20. Nf3 {[%clk 0:02:18]}  Be6 {[%clk 0:01:11]} 21. Qd2 {[%clk 0:02:18]}  b3 {[%clk 0:01:07]} 22. Qxa5 {[%clk 0:02:18]}  b2 {[%clk 0:01:01]} 23. Qxa3 {[%clk 0:02:16]}  bxa1=Q {[%clk 0:01:02]} 24. Rxa1 {[%clk 0:02:17]}  Ra8 {[%clk 0:00:59]} 25. Qc1 {[%clk 0:02:10]}  Rxa2 {[%clk 0:00:57]} 26. Rxa2 {[%clk 0:02:10]}  Bxa2 {[%clk 0:00:58]} 27. Qd2 {[%clk 0:02:11]}  Be6 {[%clk 0:00:58]} 28. Rc1 {[%clk 0:02:11]}  Qd7 {[%clk 0:00:57]} 29. Ne5 {[%clk 0:02:10]}  Qa7 {[%clk 0:00:48]} 30. Nc6 {[%clk 0:02:10]}  Qd7 {[%clk 0:00:43]} 31. Qb4 {[%clk 0:02:08]}  Re8 {[%clk 0:00:40]} 32. Nc4 {[%clk 0:02:08]}  Nd5 {[%clk 0:00:38]} 33. Bxd5 {[%clk 0:02:04]}  Bxd5 {[%clk 0:00:39]} 34. Nb6 {[%clk 0:02:03]}  Qxc6 {[%clk 0:00:17]} 35. Rxc6 {[%clk 0:02:00]}  Bxc6 {[%clk 0:00:18]} 36. Qc5 {[%clk 0:01:59]}  Bb7 {[%clk 0:00:17]} 37. Qc7 {[%clk 0:01:57]}  Bd5 {[%clk 0:00:15]} 38. Nxd5 {[%clk 0:01:57]} 1-0


[Site "https://www.chess.com"]

[Event "Titled Tuesday Blitz August 15 Early 2023"]
[White "Llanos, Guillermo"]
[Black "Mendez Fortes, Eduardo Jesus"]
[WhiteFideId "100358"]
[BlackFideId "3502376"]
[WhiteElo "2413"]
[BlackElo "2599"]
[Result "0-1"]
[Round "7"]
[TimeControl "180+1"]
[Date "2023.08.15"]
[WhiteClock "0:00:00"]
[BlackClock "0:00:10"]
[Board "126"]

1. b3 {[%clk 0:03:00]}  d5 {[%clk 0:02:59]} 2. Bb2 {[%clk 0:03:01]}  Nf6 {[%clk 0:03:00]} 3. Nf3 {[%clk 0:03:01]}  e6 {[%clk 0:03:00]} 4. e3 {[%clk 0:03:00]}  c5 {[%clk 0:03:00]} 5. c4 {[%clk 0:03:00]}  Nc6 {[%clk 0:02:58]} 6. cxd5 {[%clk 0:02:53]}  exd5 {[%clk 0:02:59]} 7. d4 {[%clk 0:02:47]}  cxd4 {[%clk 0:02:59]} 8. Nxd4 {[%clk 0:02:47]}  Bd6 {[%clk 0:02:59]} 9. Be2 {[%clk 0:02:39]}  O-O {[%clk 0:02:58]} 10. O-O {[%clk 0:02:38]}  Ne4 {[%clk 0:02:53]} 11. Nd2 {[%clk 0:02:32]}  Qh4 {[%clk 0:02:43]} 12. N2f3 {[%clk 0:02:25]}  Qh6 {[%clk 0:02:40]} 13. Nb5 {[%clk 0:02:11]}  Bg4 {[%clk 0:02:03]} 14. Nxd6 {[%clk 0:02:08]}  Qxd6 {[%clk 0:02:02]} 15. Nd4 {[%clk 0:02:03]}  Bxe2 {[%clk 0:01:58]} 16. Qxe2 {[%clk 0:02:03]}  Nxd4 {[%clk 0:01:55]} 17. Bxd4 {[%clk 0:02:02]}  a6 {[%clk 0:01:49]} 18. Rfc1 {[%clk 0:01:59]}  Qe6 {[%clk 0:01:45]} 19. f3 {[%clk 0:01:58]}  Nd6 {[%clk 0:01:44]} 20. Qd2 {[%clk 0:01:31]}  Rfc8 {[%clk 0:01:40]} 21. a4 {[%clk 0:01:27]}  Nf5 {[%clk 0:01:37]} 22. g4 {[%clk 0:01:20]}  Nh4 {[%clk 0:01:34]} 23. Qf2 {[%clk 0:01:14]}  Ng6 {[%clk 0:01:30]} 24. h4 {[%clk 0:01:08]}  Ne7 {[%clk 0:01:09]} 25. h5 {[%clk 0:01:04]}  h6 {[%clk 0:01:00]} 26. Qg3 {[%clk 0:00:59]}  Nc6 {[%clk 0:00:58]} 27. Bb6 {[%clk 0:00:43]}  Re8 {[%clk 0:00:55]} 28. a5 {[%clk 0:00:40]}  Qf6 {[%clk 0:00:54]} 29. Ra2 {[%clk 0:00:31]}  Rac8 {[%clk 0:00:45]} 30. Rac2 {[%clk 0:00:31]}  Qe6 {[%clk 0:00:43]} 31. Qf4 {[%clk 0:00:25]}  Ra8 {[%clk 0:00:40]} 32. Kf2 {[%clk 0:00:23]}  Ne5 {[%clk 0:00:39]} 33. Kg2 {[%clk 0:00:18]}  Nd3 {[%clk 0:00:38]} 34. Qd4 {[%clk 0:00:17]}  Nxc1 {[%clk 0:00:38]} 35. Rxc1 {[%clk 0:00:17]}  Rac8 {[%clk 0:00:38]} 36. Bc5 {[%clk 0:00:16]}  Rc6 {[%clk 0:00:37]} 37. b4 {[%clk 0:00:16]}  f5 {[%clk 0:00:31]} 38. Rd1 {[%clk 0:00:16]}  fxg4 {[%clk 0:00:27]} 39. fxg4 {[%clk 0:00:14]}  Kh8 {[%clk 0:00:20]} 40. Kg3 {[%clk 0:00:11]}  Rcc8 {[%clk 0:00:15]} 41. Qxd5 {[%clk 0:00:11]}  Qf6 {[%clk 0:00:15]} 42. Qf3 {[%clk 0:00:09]}  Qe5+ {[%clk 0:00:15]} 43. Qf4 {[%clk 0:00:09]}  Qxf4+ {[%clk 0:00:15]} 44. exf4 {[%clk 0:00:09]}  Rc7 {[%clk 0:00:14]} 45. Rd6 {[%clk 0:00:08]}  Kg8 {[%clk 0:00:14]} 46. g5 {[%clk 0:00:08]}  hxg5 {[%clk 0:00:14]} 47. fxg5 {[%clk 0:00:08]}  Rf7 {[%clk 0:00:14]} 48. g6 {[%clk 0:00:06]}  Rf5 {[%clk 0:00:14]} 49. Kg4 {[%clk 0:00:05]}  Rfe5 {[%clk 0:00:13]} 50. Rd7 {[%clk 0:00:05]}  Re4+ {[%clk 0:00:13]} 51. Kf3 {[%clk 0:00:04]}  Rh4 {[%clk 0:00:12]} 52. Rxb7 {[%clk 0:00:04]}  Rxh5 {[%clk 0:00:11]} 53. Rb6 {[%clk 0:00:04]}  Rf5+ {[%clk 0:00:10]} 54. Kg4 {[%clk 0:00:04]}  Rf6 {[%clk 0:00:09]} 55. Rxf6 {[%clk 0:00:02]}  gxf6 {[%clk 0:00:10]} 56. Kf5 {[%clk 0:00:02]}  Kg7 {[%clk 0:00:11]} 57. Bd4 {[%clk 0:00:02]}  Rf8 {[%clk 0:00:11]} 58. Bc5 {[%clk 0:00:02]}  Rd8 {[%clk 0:00:10]} 59. Be7 {[%clk 0:00:01]}  Rd5+ {[%clk 0:00:10]} 60. Ke6 {[%clk 0:00:00]}  Re5+ {[%clk 0:00:10]} 0-1


[Site "https://www.chess.com"]

[Event "Titled Tuesday Blitz August 15 Early 2023"]
[White "Buscar, Michael"]
[Black "Bodnaruk, Anastasia"]
[WhiteFideId "2603616"]
[BlackFideId "4181751"]
[WhiteElo "2407"]
[BlackElo "2597"]
[Result "0-1"]
[Round "7"]
[TimeControl "180+1"]
[Date "2023.08.15"]
[WhiteClock "0:00:11"]
[BlackClock "0:00:31"]
[Board "127"]

1. d4 {[%clk 0:02:28]}  Nf6 {[%clk 0:02:58]} 2. c4 {[%clk 0:02:28]}  g6 {[%clk 0:02:59]} 3. Nc3 {[%clk 0:02:28]}  Bg7 {[%clk 0:02:59]} 4. e4 {[%clk 0:02:28]}  d6 {[%clk 0:02:59]} 5. Nf3 {[%clk 0:02:29]}  O-O {[%clk 0:02:59]} 6. Be2 {[%clk 0:02:29]}  e5 {[%clk 0:03:00]} 7. O-O {[%clk 0:02:28]}  Nc6 {[%clk 0:03:00]} 8. d5 {[%clk 0:02:28]}  Ne7 {[%clk 0:03:00]} 9. Ne1 {[%clk 0:02:20]}  Nd7 {[%clk 0:02:59]} 10. Be3 {[%clk 0:02:18]}  f5 {[%clk 0:02:59]} 11. f3 {[%clk 0:02:18]}  f4 {[%clk 0:03:00]} 12. Bf2 {[%clk 0:02:19]}  g5 {[%clk 0:02:59]} 13. Nd3 {[%clk 0:02:17]}  h5 {[%clk 0:02:52]} 14. c5 {[%clk 0:02:17]}  Nf6 {[%clk 0:02:48]} 15. cxd6 {[%clk 0:02:11]}  cxd6 {[%clk 0:02:49]} 16. Nb5 {[%clk 0:02:12]}  a6 {[%clk 0:02:36]} 17. Na7 {[%clk 0:01:18]}  Bd7 {[%clk 0:02:20]} 18. Qb3 {[%clk 0:01:18]}  g4 {[%clk 0:01:56]} 19. Nxe5 {[%clk 0:01:16]}  dxe5 {[%clk 0:01:52]} 20. d6+ {[%clk 0:01:16]}  Ned5 {[%clk 0:01:45]} 21. Bc4 {[%clk 0:00:55]}  g3 {[%clk 0:01:40]} 22. Bb6 {[%clk 0:00:44]}  gxh2+ {[%clk 0:01:30]} 23. Kh1 {[%clk 0:00:42]}  Qe8 {[%clk 0:01:30]} 24. Bxd5+ {[%clk 0:00:29]}  Kh8 {[%clk 0:01:12]} 25. Bxb7 {[%clk 0:00:25]}  Rb8 {[%clk 0:01:13]} 26. Bc7 {[%clk 0:00:25]}  Rxb7 {[%clk 0:01:13]} 27. Qxb7 {[%clk 0:00:25]}  Qg6 {[%clk 0:01:11]} 28. Qxa6 {[%clk 0:00:15]}  h4 {[%clk 0:01:07]} 29. Qe2 {[%clk 0:00:15]}  Nh5 {[%clk 0:01:06]} 30. Qf2 {[%clk 0:00:14]}  Ng3+ {[%clk 0:00:57]} 31. Kxh2 {[%clk 0:00:14]}  Bf6 {[%clk 0:00:54]} 32. Rfb1 {[%clk 0:00:13]}  Qh5 {[%clk 0:00:46]} 33. b4 {[%clk 0:00:12]}  h3 {[%clk 0:00:42]} 34. Rh1 {[%clk 0:00:11]}  Rg8 {[%clk 0:00:36]} 35. Rag1 {[%clk 0:00:10]}  hxg2+ {[%clk 0:00:34]} 36. Kxg2 {[%clk 0:00:10]}  Nxh1+ {[%clk 0:00:34]} 37. Kf1 {[%clk 0:00:11]}  Nxf2 {[%clk 0:00:33]} 38. Rxg8+ {[%clk 0:00:11]}  Kxg8 {[%clk 0:00:32]} 39. Kxf2 {[%clk 0:00:11]}  Qh2+ {[%clk 0:00:31]} 0-1


[Site "https://www.chess.com"]

[Event "Titled Tuesday Blitz August 15 Early 2023"]
[White "Okike, David"]
[Black "Hristodoulou, Panagiotis"]
[WhiteFideId "8500134"]
[BlackFideId "4214340"]
[WhiteElo "2352"]
[BlackElo "2504"]
[Result "0-1"]
[Round "7"]
[TimeControl "180+1"]
[Date "2023.08.15"]
[WhiteClock "0:00:10"]
[BlackClock "0:00:17"]
[Board "130"]

1. e4 {[%clk 0:02:55]}  e5 {[%clk 0:02:59]} 2. Nf3 {[%clk 0:02:53]}  Nc6 {[%clk 0:03:00]} 3. Bc4 {[%clk 0:02:53]}  Nf6 {[%clk 0:03:00]} 4. d3 {[%clk 0:02:53]}  Bc5 {[%clk 0:03:00]} 5. c3 {[%clk 0:02:53]}  d6 {[%clk 0:02:59]} 6. Bg5 {[%clk 0:02:51]}  h6 {[%clk 0:02:58]} 7. Bh4 {[%clk 0:02:52]}  O-O {[%clk 0:02:58]} 8. O-O {[%clk 0:02:49]}  a6 {[%clk 0:02:59]} 9. a4 {[%clk 0:02:48]}  Ba7 {[%clk 0:02:59]} 10. a5 {[%clk 0:02:48]}  Be6 {[%clk 0:02:56]} 11. Nbd2 {[%clk 0:02:47]}  Re8 {[%clk 0:02:49]} 12. Re1 {[%clk 0:02:47]}  g5 {[%clk 0:02:29]} 13. Bg3 {[%clk 0:02:46]}  Qd7 {[%clk 0:02:24]} 14. Qb3 {[%clk 0:02:45]}  Kg7 {[%clk 0:02:20]} 15. Bxe6 {[%clk 0:02:41]}  fxe6 {[%clk 0:02:20]} 16. Nc4 {[%clk 0:02:40]}  Rf8 {[%clk 0:02:15]} 17. Qd1 {[%clk 0:02:27]}  Nh5 {[%clk 0:02:15]} 18. b4 {[%clk 0:02:08]}  Nxg3 {[%clk 0:02:07]} 19. hxg3 {[%clk 0:02:05]}  g4 {[%clk 0:02:08]} 20. Nh2 {[%clk 0:02:00]}  Bxf2+ {[%clk 0:02:04]} 21. Kh1 {[%clk 0:02:00]}  Bxe1 {[%clk 0:01:52]} 22. Qxg4+ {[%clk 0:01:59]}  Kh7 {[%clk 0:01:52]} 23. Rxe1 {[%clk 0:01:59]}  Rg8 {[%clk 0:01:50]} 24. Qh3 {[%clk 0:01:57]}  Raf8 {[%clk 0:01:49]} 25. Ng4 {[%clk 0:01:57]}  Qg7 {[%clk 0:01:49]} 26. Nce3 {[%clk 0:01:52]}  Qg5 {[%clk 0:01:43]} 27. Kh2 {[%clk 0:01:48]}  d5 {[%clk 0:01:38]} 28. exd5 {[%clk 0:01:45]}  exd5 {[%clk 0:01:38]} 29. d4 {[%clk 0:01:37]}  e4 {[%clk 0:01:34]} 30. Kg1 {[%clk 0:01:35]}  Ne7 {[%clk 0:01:30]} 31. Re2 {[%clk 0:01:22]}  c6 {[%clk 0:01:28]} 32. Ne5 {[%clk 0:01:17]}  Nf5 {[%clk 0:01:27]} 33. Nxf5 {[%clk 0:01:15]}  Qxf5 {[%clk 0:01:27]} 34. Qxf5+ {[%clk 0:01:14]}  Rxf5 {[%clk 0:01:28]} 35. g4 {[%clk 0:01:14]}  Rf6 {[%clk 0:01:23]} 36. Kh2 {[%clk 0:01:12]}  Rf1 {[%clk 0:01:20]} 37. Rc2 {[%clk 0:01:11]}  Rgf8 {[%clk 0:01:16]} 38. Kg3 {[%clk 0:01:10]}  Rd1 {[%clk 0:01:07]} 39. Kh4 {[%clk 0:01:02]}  Rff1 {[%clk 0:01:00]} 40. Nd7 {[%clk 0:01:02]}  Rd3 {[%clk 0:00:58]} 41. g5 {[%clk 0:00:57]}  Kg6 {[%clk 0:00:42]} 42. gxh6 {[%clk 0:00:56]}  Kxh6 {[%clk 0:00:36]} 43. Kg4 {[%clk 0:00:50]}  e3 {[%clk 0:00:34]} 44. Re2 {[%clk 0:00:47]}  Rf2 {[%clk 0:00:32]} 45. Re1 {[%clk 0:00:47]}  Rxg2+ {[%clk 0:00:32]} 46. Kf3 {[%clk 0:00:47]}  Rf2+ {[%clk 0:00:31]} 47. Kg3 {[%clk 0:00:47]}  Rxc3 {[%clk 0:00:31]} 48. Nc5 {[%clk 0:00:45]}  Rf5 {[%clk 0:00:28]} 49. Nxb7 {[%clk 0:00:43]}  e2+ {[%clk 0:00:24]} 50. Kg2 {[%clk 0:00:41]}  Rc2 {[%clk 0:00:21]} 51. Nc5 {[%clk 0:00:40]}  Kg5 {[%clk 0:00:20]} 52. Ne6+ {[%clk 0:00:28]}  Kg4 {[%clk 0:00:18]} 53. Nc5 {[%clk 0:00:25]}  Kf4 {[%clk 0:00:18]} 54. b5 {[%clk 0:00:18]}  cxb5 {[%clk 0:00:17]} 55. Rb1 {[%clk 0:00:10]}  e1=Q+ {[%clk 0:00:17]} 0-1


[Site "https://www.chess.com"]

[Event "Titled Tuesday Blitz August 15 Early 2023"]
[White "Avazkhonov, Alikhon"]
[Black "Yashmetov, Mikhail"]
[WhiteFideId "14208504"]
[BlackFideId "24198900"]
[WhiteElo "2390"]
[BlackElo "2484"]
[Result "1-0"]
[Round "7"]
[TimeControl "180+1"]
[Date "2023.08.15"]
[WhiteClock "0:00:41"]
[BlackClock "0:00:00"]
[Board "131"]

1. d4 {[%clk 0:03:00]}  Nf6 {[%clk 0:02:59]} 2. c4 {[%clk 0:03:01]}  e6 {[%clk 0:02:59]} 3. Nc3 {[%clk 0:03:01]}  d5 {[%clk 0:02:59]} 4. cxd5 {[%clk 0:03:02]}  exd5 {[%clk 0:03:00]} 5. Bg5 {[%clk 0:03:01]}  c6 {[%clk 0:02:48]} 6. e3 {[%clk 0:03:01]}  Bd6 {[%clk 0:02:46]} 7. Bd3 {[%clk 0:03:01]}  O-O {[%clk 0:02:43]} 8. Qc2 {[%clk 0:03:00]}  h6 {[%clk 0:02:43]} 9. Bh4 {[%clk 0:03:00]}  Re8 {[%clk 0:02:40]} 10. Nf3 {[%clk 0:03:00]}  Bg4 {[%clk 0:02:31]} 11. O-O-O {[%clk 0:02:57]}  Na6 {[%clk 0:02:31]} 12. a3 {[%clk 0:02:39]}  b5 {[%clk 0:02:26]} 13. h3 {[%clk 0:02:26]}  Bd7 {[%clk 0:02:14]} 14. g4 {[%clk 0:02:24]}  Qa5 {[%clk 0:01:14]} 15. g5 {[%clk 0:01:59]}  hxg5 {[%clk 0:01:09]} 16. Bxg5 {[%clk 0:02:00]}  b4 {[%clk 0:01:09]} 17. Bxf6 {[%clk 0:01:51]}  gxf6 {[%clk 0:00:51]} 18. Rdg1+ {[%clk 0:01:49]}  Kf8 {[%clk 0:00:51]} 19. Qa4 {[%clk 0:01:49]}  Qxa4 {[%clk 0:00:46]} 20. Nxa4 {[%clk 0:01:49]}  Nc7 {[%clk 0:00:42]} 21. Nc5 {[%clk 0:01:48]}  Bxc5 {[%clk 0:00:40]} 22. dxc5 {[%clk 0:01:49]}  bxa3 {[%clk 0:00:40]} 23. bxa3 {[%clk 0:01:42]}  Ne6 {[%clk 0:00:40]} 24. Bf5 {[%clk 0:01:32]}  Nxc5 {[%clk 0:00:38]} 25. Bxd7 {[%clk 0:01:33]}  Nxd7 {[%clk 0:00:39]} 26. Nd4 {[%clk 0:01:34]}  Re5 {[%clk 0:00:21]} 27. Kd2 {[%clk 0:01:28]}  c5 {[%clk 0:00:20]} 28. Nf3 {[%clk 0:01:14]}  Rh5 {[%clk 0:00:14]} 29. Rb1 {[%clk 0:01:11]}  Ke7 {[%clk 0:00:11]} 30. Rb7 {[%clk 0:01:11]}  Kd6 {[%clk 0:00:11]} 31. Ke2 {[%clk 0:01:06]}  Kc6 {[%clk 0:00:11]} 32. Rhb1 {[%clk 0:01:02]}  Rxh3 {[%clk 0:00:07]} 33. a4 {[%clk 0:01:02]}  Rhh8 {[%clk 0:00:04]} 34. a5 {[%clk 0:00:59]}  Rab8 {[%clk 0:00:04]} 35. a6 {[%clk 0:00:57]}  Rxb7 {[%clk 0:00:04]} 36. Rxb7 {[%clk 0:00:58]}  Ra8 {[%clk 0:00:04]} 37. Nd2 {[%clk 0:00:57]}  c4 {[%clk 0:00:05]} 38. Nf3 {[%clk 0:00:56]}  Nc5 {[%clk 0:00:03]} 39. Nd4+ {[%clk 0:00:54]}  Kd6 {[%clk 0:00:03]} 40. Nb5+ {[%clk 0:00:53]}  Ke5 {[%clk 0:00:02]} 41. Re7+ {[%clk 0:00:51]}  Kf5 {[%clk 0:00:02]} 42. Nc7 {[%clk 0:00:42]}  Rc8 {[%clk 0:00:02]} 43. Nxd5 {[%clk 0:00:42]}  Nxa6 {[%clk 0:00:02]} 44. e4+ {[%clk 0:00:41]}  Kg6 {[%clk 0:00:00]} 45. Rxa7 {[%clk 0:00:41]} 1-0


[Site "https://www.chess.com"]